fUSD/lending_fUSD_20250417
["ID","MTS","AMOUNT","RATE_DAILY","PERIOD"]
[358257935,1744876379969,-170779.005117,0.00498774,120]
[358257936,1744876379979,-200.0,0.00499,120]
[358257937,1744876379988,-350.0,0.00499808,120]
[358257938,1744876379997,-151.96439459,0.005,14]
[358257939,1744876380007,-10000.0,0.005,120]
[358257940,1744876380017,-100000.0,0.005,30]
[358257941,1744876380027,-4683.57674508,0.005,120]
[358257942,1744876380036,-209.07110098,0.005,120]
[358257943,1744876380046,-1000.0,0.005,120]
[358257944,1744876380056,-3266.46837376,0.005,120]
[358257945,1744876380067,-4000.0,0.005,120]
[358257946,1744876380077,-1000.0,0.005,2]
[358257947,1744876380087,-304.0,0.005,120]
[358257948,1744876380097,-500.0,0.005,120]
[358257949,1744876380107,-1373.06028434,0.005,120]
[358257950,1744876380117,-504.69401904,0.005,120]
[358257951,1744876380127,-1541.48900892,0.005,10]
[358257952,1744876380136,-450.0,0.005,120]
[358257953,1744876380150,-1380.10098186,0.005,30]
[358257954,1744876380160,-511.0,0.00500027,120]
[358257955,1744876380170,-2000.0,0.00505,16]
[358257956,1744876380180,-278.36406002,0.00507164,120]
[358257957,1744876380190,-10000.0,0.0051,120]
[358257958,1744876380199,-150.0,0.00512256,120]
[358257959,1744876380209,-500.0,0.00512328,120]
[358257960,1744876380219,-500.0,0.00512328,120]
[358257961,1744876380230,-500.0,0.00512328,120]
[358257962,1744876380241,-522.87039986,0.00512328,120]
[358257963,1744876380250,-10000.0,0.0052,120]
[358257964,1744876380260,-150.0,0.00522574,120]
[358257965,1744876380270,-150.0,0.00524481,120]
[358257966,1744876380280,-255.37920132,0.0052605,120]
[358257967,1744876380289,-150.0,0.00539595,120]
[358257968,1744876380299,-10000.0,0.0054,120]
[358257969,1744876380309,-20000.0,0.0054,120]
[358257970,1744876380320,-2000.0,0.00542,120]
[358257971,1744876380330,-400.0,0.00544,120]
[358257972,1744876380339,-150.0,0.00549276,120]
[358257973,1744876380349,-2000.0,0.0055,120]
[358257974,1744876380359,-10000.0,0.0055,120]
[358257975,1744876380370,-56333.3425314,0.0055,2]
[358257976,1744876380380,-41207.4707616,0.0055,120]
[358257977,1744876380390,-999.0,0.0055,120]
[358257978,1744876380400,-999.0,0.0055,120]
[358257979,1744876380410,-999.0,0.0055,120]
[358257980,1744876380420,-999.0,0.0055,120]
[358257981,1744876380430,-999.0,0.0055,120]
[358257982,1744876380439,-999.0,0.0055,120]
[358257983,1744876380449,-600.30919035,0.0055,120]
[358257984,1744876380459,-1445.27262706,0.0055335,120]
[358257985,1744876380468,-1132.952663,0.0055901,94]
[358257986,1744876380478,-10000.0,0.0056,120]
[358257987,1744876380487,-150.0,0.00563869,120]
[358257988,1744876380497,-1000.0,0.005678,120]
[358257989,1744876380507,-1650.24951381,0.0056888,120]
[358257990,1744876380516,-335.41046711,0.00568948,120]
[358257991,1744876380526,-335.41046711,0.00568986,120]
[358257992,1744876380536,-1584.15694739,0.00568994,120]
[358257993,1744876380545,-2563.01175126,0.0056905,120]
[358257994,1744876380555,-2972.40580285,0.00569089,120]
[358257995,1744876380564,-1650.24951381,0.00569119,120]
[358257996,1744876380574,-551.19587132,0.0056917,120]
[358257997,1744876380583,-200.0,0.00569266,120]
[358257998,1744876380593,-2972.40580285,0.00569319,120]
[358257999,1744876380602,-1694.2359458,0.00569328,120]
[358258000,1744876380612,-200.0,0.00569345,120]
[358258001,1744876380621,-2972.40580285,0.00569401,120]
[358258002,1744876380631,-1584.15694739,0.00569402,120]
[358258003,1744876380641,-1820.46266667,0.00569415,120]
[358258004,1744876380651,-200.0,0.0056944,120]
[358258005,1744876380660,-335.41046711,0.00569496,120]
[358258006,1744876380670,-200.0,0.00569552,120]
[358258007,1744876380680,-1694.2359458,0.00569596,120]
[358258008,1744876380690,-1650.24951381,0.00569639,120]
[358258009,1744876380699,-1584.15694739,0.00569715,120]
[358258010,1744876380709,-2563.01175126,0.00569804,120]
[358258011,1744876380718,-2563.01175126,0.00569804,120]
[358258012,1744876380728,-551.19587132,0.00569891,120]
[358258013,1744876380738,-1820.46266667,0.00569894,120]
[358258014,1744876380747,-200.0,0.00569922,120]
[358258015,1744876380757,-1694.2359458,0.00569923,120]
[358258016,1744876380767,-551.19587132,0.00569995,120]
[358258017,1744876380776,-1820.46266667,0.00569999,120]
[358258018,1744876380786,-2000.0,0.0057,16]
[358258019,1744876380795,-10000.0,0.0057,120]
[358258020,1744876380804,-150.0,0.00570307,120]
[358258021,1744876380814,-608.56,0.00576,120]
[358258022,1744876380824,-10000.0,0.0058,120]
[358258023,1744876380834,-27710.40957499,0.0058,120]
[358258024,1744876380843,-999.0,0.0058,120]
[358258025,1744876380852,-999.0,0.0058,120]
[358258026,1744876380862,-999.0,0.0058,120]
[358258027,1744876380872,-999.0,0.0058,120]
[358258028,1744876380882,-999.0,0.0058,120]
[358258029,1744876380891,-2822.16840009,0.0058,120]
[358258030,1744876380901,-400.0,0.00584,120]
[358258031,1744876380911,-150.0,0.00584926,120]
[358258032,1744876380920,-50000.0,0.0058888,120]
[358258033,1744876380929,-2000.0,0.0059,120]
[358258034,1744876380939,-1940.23226463,0.0059,30]
[358258035,1744876380948,-181670.52413772,0.00590265,120]
[358258036,1744876380958,-99999.999999,0.00590265,120]
[358258037,1744876380967,-150.0,0.0059251,120]
[358258038,1744876380978,-170779.005117,0.00592695,120]
[358258039,1744876380987,-150.0,0.00592769,120]
[358258040,1744876380997,-16954.87790019,0.00598987,120]
[358258041,1744876381007,-200.0,0.00599,120]
[358258042,1744876381016,-150.0,0.00599366,120]
[358258043,1744876381025,-469.15,0.0059999,120]
[358258044,1744876381035,-500.0,0.006,120]
[358258045,1744876381044,-10000.0,0.006,120]
[358258046,1744876381054,-9876.0,0.006,120]
[358258047,1744876381064,-600.0,0.006,120]
[358258048,1744876381074,-1663.13021677,0.006,120]
[358258049,1744876381084,-7500.0,0.006,120]
[358258050,1744876381093,-1000.0,0.006,120]
[358258051,1744876381103,-160.000002,0.006,2]
[358258052,1744876381113,-1000.0,0.006,120]
[358258053,1744876381122,-151.0,0.006,120]
[358258054,1744876381132,-151.0,0.006,120]
[358258055,1744876381146,-10000.0,0.0061,120]
[358258056,1744876381155,-4000.0,0.0061,120]
[358258057,1744876381164,-973.10446442,0.0062,120]
[358258058,1744876381174,-150.0,0.00621616,120]
[358258059,1744876381185,-38299.43582189,0.0062767,120]
[358258060,1744876381202,-150.0,0.00628148,120]
[358258061,1744876381216,-2000.0,0.0063,120]
[358258062,1744876381227,-10000.0,0.0063,120]
[358258063,1744876381237,-2000.0,0.00635,16]
[358258064,1744876381246,-150.0,0.00636021,120]
[358258065,1744876381256,-150.0,0.0064084,120]
[358258066,1744876381267,-400.0,0.00644,120]
[358258067,1744876381277,-2000.0,0.00647,120]
[358258068,1744876381289,-999.0,0.0065,120]
[358258069,1744876381299,-999.0,0.0065,120]
[358258070,1744876381310,-999.0,0.0065,120]
[358258071,1744876381322,-999.0,0.0065,120]
[358258072,1744876381333,-999.0,0.0065,120]
[358258073,1744876381344,-999.0,0.0065,120]
[358258074,1744876381356,-999.0,0.0065,120]
[358258075,1744876381367,-999.0,0.0065,120]
[358258076,1744876381379,-999.0,0.0065,120]
[358258077,1744876381390,-999.0,0.0065,120]
[358258078,1744876381401,-999.0,0.0065,120]
[358258079,1744876381412,-999.0,0.0065,120]
[358258080,1744876381422,-1000.0,0.0065,120]
[358258081,1744876381433,-1500.0,0.006539,35]
[358258082,1744876381443,-1447.05957056,0.00655,120]
[358258083,1744876381454,-222.22222222,0.00660467,120]
[358258084,1744876381465,-620.74,0.00676,120]
[358258085,1744876381475,-1000.0,0.006789,120]
[358258086,1744876381487,-690000.0,0.00679,120]
[358258087,1744876381498,-150.0,0.00679448,120]
[358258088,1744876381509,-2000.0,0.0068,120]
[358258089,1744876381519,-250000.0,0.0068,120]
[358258090,1744876381530,-24096.53014167,0.0068,120]
[358258091,1744876381540,-555.25675543,0.0068,120]
[358258092,1744876381551,-2550.45421675,0.0068,120]
[358258093,1744876381561,-500.0,0.0068,120]
[358258094,1744876381573,-19746.59138672,0.0068,120]
[358258095,1744876381583,-469.0,0.00684,120]
[358258096,1744876381593,-306.03775367,0.00684,120]
[358258097,1744876381603,-200.0,0.00684,120]
[358258098,1744876381614,-200.0,0.00684,120]
[358258099,1744876381625,-200.0,0.00684,120]
[358258100,1744876381635,-200.0,0.00684,120]
[358258101,1744876381646,-200.0,0.00684,120]
[358258102,1744876381656,-200.0,0.00684,120]
[358258103,1744876381667,-201.0,0.00684,120]
[358258104,1744876381679,-150.0,0.00684,120]
[358258105,1744876381690,-200.0,0.00684,120]
[358258106,1744876381700,-200.0,0.00684,120]
[358258107,1744876381711,-200.0,0.00684,120]
[358258108,1744876381721,-200.0,0.00684,120]
[358258109,1744876381732,-200.0,0.00684,120]
[358258110,1744876381741,-200.0,0.00684,120]
[358258111,1744876381748,-150.0,0.00684,120]
[358258112,1744876381756,-200.0,0.00684,120]
[358258113,1744876381763,-200.0,0.00684,120]
[358258114,1744876381775,-200.0,0.00684,120]
[358258115,1744876381786,-200.0,0.00684,120]
[358258116,1744876381797,-200.0,0.00684,120]
[358258117,1744876381805,-200.0,0.00684,120]
[358258118,1744876381816,-200.0,0.00684,120]
[358258119,1744876381826,-200.0,0.00684,120]
[358258120,1744876381836,-200.0,0.00684,120]
[358258121,1744876381846,-200.0,0.00684,120]
[358258122,1744876381857,-200.0,0.00684,120]
[358258123,1744876381867,-200.0,0.00684,120]
[358258124,1744876381877,-200.0,0.00684,120]
[358258125,1744876381887,-200.0,0.00684,120]
[358258126,1744876381897,-150.0,0.00684,120]
[358258127,1744876381907,-200.0,0.00684,120]
[358258128,1744876381917,-200.0,0.00684,120]
[358258129,1744876381928,-150.0,0.00684,120]
[358258130,1744876381938,-150.0,0.00684,120]
[358258131,1744876381949,-200.0,0.00684,120]
[358258132,1744876381959,-200.0,0.00684,120]
[358258133,1744876381970,-200.0,0.00684,120]
[358258134,1744876381980,-200.0,0.00684,120]
[358258135,1744876381990,-200.0,0.00684,120]
[358258136,1744876382000,-284.0,0.00684,120]
[358258137,1744876382011,-306.03775367,0.00684768,120]
[358258138,1744876382022,-150.0,0.00684809,120]
[358258139,1744876382033,-150.0,0.00685056,120]
[358258140,1744876382043,-306.03775367,0.00685535,120]
[358258141,1744876382054,-150.0,0.00685617,120]
[358258142,1744876382065,-150.0,0.00686111,120]
[358258143,1744876382075,-150.0,0.00686111,120]
[358258144,1744876382338,-306.03775367,0.00686303,120]
[358258145,1744876382349,-150.0,0.00686426,120]
[358258146,1744876382359,-306.03775367,0.00687071,120]
[358258147,1744876382369,-150.0,0.00687167,120]
[358258148,1744876382382,-150.0,0.00687234,120]
[358258149,1744876382393,-306.03775367,0.00687838,120]
[358258150,1744876382404,-150.0,0.00688043,120]
[358258151,1744876382414,-150.0,0.00688222,120]
[358258152,1744876382423,-150.0,0.00688222,120]
[358258153,1744876382433,-306.03775367,0.00688606,120]
[358258154,1744876382444,-59999.99999903,0.006888,120]
[358258155,1744876382454,-150.0,0.00688851,120]
[358258156,1744876382464,-150.0,0.00689278,120]
[358258157,1744876382474,-306.03775367,0.00689374,120]
[358258158,1744876382484,-150.0,0.0068966,120]
[358258159,1744876382494,-70000.0,0.0069,120]
[358258160,1744876382504,-182.52352523,0.0069,30]
[358258161,1744876382514,-3566.2294039,0.0069,120]
[358258162,1744876382523,-306.03775367,0.00690141,120]
[358258163,1744876382533,-150.0,0.00690333,120]
[358258164,1744876382543,-150.0,0.00690333,120]
[358258165,1744876382552,-150.0,0.00690468,120]
[358258166,1744876382562,-306.03775367,0.00690909,120]
[358258167,1744876382573,-150.0,0.00691277,120]
[358258168,1744876382582,-150.0,0.00691389,120]
[358258169,1744876382591,-306.03775367,0.00691677,120]
[358258170,1744876382600,-150.0,0.00692085,120]
[358258171,1744876382610,-150.0,0.00692163,120]
[358258172,1744876382619,-306.03775367,0.00692444,120]
[358258173,1744876382628,-150.0,0.00692444,120]
[358258174,1744876382637,-150.0,0.00692444,120]
[358258175,1744876382647,-150.0,0.00692894,120]
[358258176,1744876382655,-6048.90000903,0.0069321,30]
[358258177,1744876382665,-306.03775367,0.00693212,120]
[358258178,1744876382674,-150.0,0.006935,120]
[358258179,1744876382683,-150.0,0.00693702,120]
[358258180,1744876382692,-306.03775367,0.0069398,120]
[358258181,1744876382702,-150.0,0.00694511,120]
[358258182,1744876382711,-150.0,0.00694556,120]
[358258183,1744876382720,-150.0,0.00694556,120]
[358258184,1744876382729,-306.03775367,0.00694747,120]
[358258185,1744876382738,-150.0,0.00695319,120]
[358258186,1744876382748,-85389.5025585,0.00695406,120]
[358258187,1744876382757,-306.03775367,0.00695515,120]
[358258188,1744876382766,-150.0,0.00695611,120]
[358258189,1744876382775,-150.0,0.00696128,120]
[358258190,1744876382785,-306.03775367,0.00696283,120]
[358258191,1744876382795,-150.0,0.00696667,120]
[358258192,1744876382804,-150.0,0.00696667,120]
[358258193,1744876382815,-1795.9700073,0.0069681,87]
[358258194,1744876382824,-150.0,0.00696936,120]
[358258195,1744876382834,-306.03775367,0.00697051,120]
[358258196,1744876382844,-150.0,0.00697722,120]
[358258197,1744876382853,-150.0,0.00697745,120]
[358258198,1744876382863,-1219.0,0.006978,120]
[358258199,1744876382873,-64981.43392582,0.006978,120]
[358258200,1744876382883,-306.03775367,0.00697818,120]
[358258201,1744876382892,-150.0,0.00698553,120]
[358258202,1744876382901,-306.03775367,0.00698586,120]
[358258203,1744876382911,-150.0,0.00698778,120]
[358258204,1744876382920,-150.0,0.00698778,120]
[358258205,1744876382930,-200.0,0.00699,120]
[358258206,1744876382939,-150.0,0.00699,120]
[358258207,1744876382948,-306.03775367,0.00699354,120]
[358258208,1744876382957,-150.0,0.00699362,120]
[358258209,1744876382966,-150.0,0.00699833,120]
[358258210,1744876382975,-1000.0,0.0069998,120]
[358258211,1744876382984,-1000.0,0.0069998,120]
[358258212,1744876382994,-8000.0,0.007,120]
[358258213,1744876383003,-50970.66748687,0.007,120]
[358258214,1744876383012,-100135.11053567,0.007,120]
[358258215,1744876383022,-4032.62376541,0.007,120]
[358258216,1744876383031,-100000.0,0.007,120]
[358258217,1744876383040,-1173.88772676,0.007,120]
[358258218,1744876383049,-888.97527027,0.007,120]
[358258219,1744876383059,-24763.95581261,0.007,120]
[358258220,1744876383069,-1185.04765832,0.007,120]
[358258221,1744876383079,-8627.0,0.007,120]
[358258222,1744876383088,-294.46814318,0.007,14]
[358258223,1744876383098,-1114.06815676,0.007,120]
[358258224,1744876383107,-1000.0,0.007,120]
[358258225,1744876383116,-100000.0,0.007,120]
[358258226,1744876383126,-6325.3008654,0.007,120]
[358258227,1744876383135,-5319.53232618,0.007,120]
[358258228,1744876383147,-5018.87242989,0.007,2]
[358258229,1744876383157,-45111.59973183,0.007,120]
[358258230,1744876383167,-1000.0,0.007,120]
[358258231,1744876383177,-434.40861606,0.007,120]
[358258232,1744876383187,-306.03775367,0.00700121,120]
[358258233,1744876383196,-150.0,0.0070017,120]
[358258234,1744876383206,-306.03775367,0.00700889,120]
[358258235,1744876383217,-150.0,0.00700889,120]
[358258236,1744876383228,-150.0,0.00700889,120]
[358258237,1744876383238,-150.0,0.00700979,120]
[358258238,1744876383248,-306.03775367,0.00701657,120]
[358258239,1744876383258,-150.0,0.00701787,120]
[358258240,1744876383268,-150.0,0.00701944,120]
[358258241,1744876383278,-306.03775367,0.00702424,120]
[358258242,1744876383288,-150.0,0.00702596,120]
[358258243,1744876383298,-150.0,0.00703,120]
[358258244,1744876383307,-150.0,0.00703,120]
[358258245,1744876383318,-306.03775367,0.00703192,120]
[358258246,1744876383328,-150.0,0.00703404,120]
[358258247,1744876383338,-306.03775367,0.0070396,120]
[358258248,1744876383348,-150.0,0.00704056,120]
[358258249,1744876383357,-150.0,0.00704213,120]
[358258250,1744876383367,-150.0,0.00704449,120]
[358258251,1744876383377,-306.03775367,0.00704727,120]
[358258252,1744876383388,-150.0,0.00705021,120]
[358258253,1744876383398,-150.0,0.00705111,120]
[358258254,1744876383408,-150.0,0.00705111,120]
[358258255,1744876383418,-306.03775367,0.00705495,120]
[358258256,1744876383427,-150.0,0.0070583,120]
[358258257,1744876383437,-150.0,0.00706167,120]
[358258258,1744876383447,-306.03775367,0.00706263,120]
[358258259,1744876383457,-150.0,0.00706638,120]
[358258260,1744876383466,-306.03775367,0.0070703,120]
[358258261,1744876383476,-150.0,0.00707222,120]
[358258262,1744876383487,-150.0,0.00707222,120]
[358258263,1744876383496,-150.0,0.00707447,120]
[358258264,1744876383506,-150.0,0.0070775,120]
[358258265,1744876383517,-306.03775367,0.00707798,120]
[358258266,1744876383527,-150.0,0.00708255,120]
[358258267,1744876383537,-150.0,0.00708278,120]
[358258268,1744876383547,-306.03775367,0.00708566,120]
[358258269,1744876383557,-150.0,0.00709064,120]
[358258270,1744876383567,-306.03775367,0.00709333,120]
[358258271,1744876383577,-150.0,0.00709333,120]
[358258272,1744876383587,-150.0,0.00709333,120]
[358258273,1744876383597,-150.0,0.00709872,120]
[358258274,1744876383607,-3382.73487602,0.0071,120]
[358258275,1744876383616,-2000.0,0.0071,120]
[358258276,1744876383626,-306.03775367,0.00710101,120]
[358258277,1744876383636,-150.0,0.00710389,120]
[358258278,1744876383645,-150.0,0.00710681,120]
[358258279,1744876383655,-306.03775367,0.00710869,120]
[358258280,1744876383664,-150.0,0.00711444,120]
[358258281,1744876383674,-150.0,0.00711444,120]
[358258282,1744876383683,-150.0,0.00711489,120]
[358258283,1744876383693,-306.03775367,0.00711636,120]
[358258284,1744876383703,-150.0,0.00712298,120]
[358258285,1744876383712,-306.03775367,0.00712404,120]
[358258286,1744876383722,-150.0,0.007125,120]
[358258287,1744876383732,-150.0,0.00713106,120]
[358258288,1744876383742,-306.03775367,0.00713172,120]
[358258289,1744876383751,-150.0,0.00713556,120]
[358258290,1744876383762,-150.0,0.00713556,120]
[358258291,1744876383772,-150.0,0.00713915,120]
[358258292,1744876383783,-306.03775367,0.00713939,120]
[358258293,1744876383793,-150.0,0.00714611,120]
[358258294,1744876383803,-306.03775367,0.00714707,120]
[358258295,1744876383814,-150.0,0.00714723,120]
[358258296,1744876383825,-306.03775367,0.00715475,120]
[358258297,1744876383835,-150.0,0.00715532,120]
[358258298,1744876383845,-150.0,0.00715667,120]
[358258299,1744876383855,-150.0,0.00715667,120]
[358258300,1744876383865,-306.03775367,0.00716242,120]
[358258301,1744876383875,-150.0,0.0071634,120]
[358258302,1744876383884,-150.0,0.00716722,120]
[358258303,1744876383894,-306.03775367,0.0071701,120]
[358258304,1744876383904,-150.0,0.00717149,120]
[358258305,1744876383914,-306.03775367,0.00717778,120]
[358258306,1744876383923,-150.0,0.00717778,120]
[358258307,1744876383934,-150.0,0.00717778,120]
[358258308,1744876383943,-150.0,0.00717957,120]
[358258309,1744876383953,-306.03775367,0.00718545,120]
[358258310,1744876383963,-150.0,0.00718766,120]
[358258311,1744876383972,-150.0,0.00718833,120]
[358258312,1744876383982,-222.22222222,0.00718933,120]
[358258313,1744876383993,-306.03775367,0.00719313,120]
[358258314,1744876384002,-150.0,0.00719574,120]
[358258315,1744876384012,-150.0,0.00719717,120]
[358258316,1744876384022,-150.0,0.00719889,120]
[358258317,1744876384032,-150.0,0.00719889,120]
[358258318,1744876384042,-1097.85711103,0.0072,120]
[358258319,1744876384051,-5000.0,0.0072,120]
[358258320,1744876384061,-241.69873713,0.0072,120]
[358258321,1744876384071,-250000.0,0.0072,120]
[358258322,1744876384082,-306.03775367,0.00720081,120]
[358258323,1744876384091,-150.0,0.00720383,120]
[358258324,1744876384100,-306.03775367,0.00720848,120]
[358258325,1744876384110,-150.0,0.00720944,120]
[358258326,1744876384119,-150.0,0.00721191,120]
[358258327,1744876384129,-306.03775367,0.00721616,120]
[358258328,1744876384140,-150.0,0.00722,120]
[358258329,1744876384153,-150.0,0.00722,120]
[358258330,1744876384163,-150.0,0.00722,120]
[358258331,1744876384174,-306.03775367,0.00722384,120]
[358258332,1744876384185,-150.0,0.00722809,120]
[358258333,1744876384197,-150.0,0.00723056,120]
[358258334,1744876384209,-306.03775367,0.00723152,120]
[358258335,1744876384220,-150.0,0.00723617,120]
[358258336,1744876384230,-306.03775367,0.00723919,120]
[358258337,1744876384240,-150.0,0.00724111,120]
[358258338,1744876384250,-150.0,0.00724111,120]
[358258339,1744876384260,-150.0,0.00724426,120]
[358258340,1744876384271,-306.03775367,0.00724687,120]
[358258341,1744876384281,-150.0,0.00725167,120]
[358258342,1744876384291,-150.0,0.00725234,120]
[358258343,1744876384301,-306.03775367,0.00725455,120]
[358258344,1744876384311,-150.0,0.00726043,120]
[358258345,1744876384321,-306.03775367,0.00726222,120]
[358258346,1744876384331,-150.0,0.00726222,120]
[358258347,1744876384341,-150.0,0.00726222,120]
[358258348,1744876384351,-150.0,0.00726851,120]
[358258349,1744876384361,-306.03775367,0.0072699,120]
[358258350,1744876384371,-150.0,0.00727278,120]
[358258351,1744876384382,-150.0,0.0072735,120]
[358258352,1744876384392,-150.0,0.00727521,120]
[358258353,1744876384402,-150.0,0.0072766,120]
[358258354,1744876384411,-306.03775367,0.00727758,120]
[358258355,1744876384422,-10000.0,0.00728,120]
[358258356,1744876384431,-1000.0,0.00728246,120]
[358258357,1744876384441,-150.0,0.00728333,120]
[358258358,1744876384451,-150.0,0.00728333,120]
[358258359,1744876384460,-150.0,0.00728468,120]
[358258360,1744876384469,-306.03775367,0.00728525,120]
[358258361,1744876384479,-150.0,0.00729277,120]
[358258362,1744876384489,-306.03775367,0.00729293,120]
[358258363,1744876384499,-150.0,0.00729389,120]
[358258364,1744876384509,-306.03775367,0.00730061,120]
[358258365,1744876384519,-150.0,0.00730085,120]
[358258366,1744876384529,-150.0,0.00730444,120]
[358258367,1744876384538,-150.0,0.00730444,120]
[358258368,1744876384549,-306.03775367,0.00730828,120]
[358258369,1744876384559,-150.0,0.00730894,120]
[358258370,1744876384570,-150.0,0.007315,120]
[358258371,1744876384580,-306.03775367,0.00731596,120]
[358258372,1744876384590,-150.0,0.00731702,120]
[358258373,1744876384601,-306.03775367,0.00732364,120]
[358258374,1744876384611,-150.0,0.00732511,120]
[358258375,1744876384621,-150.0,0.00732556,120]
[358258376,1744876384631,-150.0,0.00732556,120]
[358258377,1744876384641,-306.03775367,0.00733131,120]
[358258378,1744876384650,-150.0,0.00733319,120]
[358258379,1744876384659,-150.0,0.00733611,120]
[358258380,1744876384669,-306.03775367,0.00733899,120]
[358258381,1744876384679,-150.0,0.00734128,120]
[358258382,1744876384689,-306.03775367,0.00734667,120]
[358258383,1744876384780,-150.0,0.00734667,120]
[358258384,1744876384790,-150.0,0.00734667,120]
[358258385,1744876384800,-150.0,0.00734936,120]
[358258386,1744876384809,-306.03775367,0.00735434,120]
[358258387,1744876384820,-150.0,0.00735722,120]
[358258388,1744876384831,-150.0,0.00735745,120]
[358258389,1744876384841,-306.03775367,0.00736202,120]
[358258390,1744876384851,-150.0,0.00736553,120]
[358258391,1744876384862,-150.0,0.00736778,120]
[358258392,1744876384872,-150.0,0.00736778,120]
[358258393,1744876384882,-306.03775367,0.0073697,120]
[358258394,1744876384891,-29068.33564405,0.00737,120]
[358258395,1744876384901,-150.0,0.00737362,120]
[358258396,1744876384912,-306.03775367,0.00737737,120]
[358258397,1744876384922,-150.0,0.00737833,120]
[358258398,1744876384931,-10000.0,0.00738,120]
[358258399,1744876384941,-150.0,0.0073817,120]
[358258400,1744876384950,-306.03775367,0.00738505,120]
[358258401,1744876384960,-150.0,0.00738889,120]
[358258402,1744876384971,-150.0,0.00738889,120]
[358258403,1744876384981,-150.0,0.00738979,120]
[358258404,1744876384991,-306.03775367,0.00739273,120]
[358258405,1744876385001,-150.0,0.00739787,120]
[358258406,1744876385010,-150.0,0.00739944,120]
[358258407,1744876385020,-4676.74017915,0.00739989,120]
[358258408,1744876385029,-3000.0,0.00739999,120]
[358258409,1744876385039,-306.03775367,0.0074004,120]
[358258410,1744876385048,-150.0,0.00740596,120]
[358258411,1744876385057,-306.03775367,0.00740808,120]
[358258412,1744876385068,-150.0,0.00741,120]
[358258413,1744876385077,-150.0,0.00741,120]
[358258414,1744876385086,-75000.0,0.00741,120]
[358258415,1744876385096,-150.0,0.00741404,120]
[358258416,1744876385105,-306.03775367,0.00741576,120]
[358258417,1744876385115,-150.0,0.00742056,120]
[358258418,1744876385124,-150.0,0.00742213,120]
[358258419,1744876385133,-306.03775367,0.00742343,120]
[358258420,1744876385145,-150.0,0.00743021,120]
[358258421,1744876385155,-306.03775367,0.00743111,120]
[358258422,1744876385163,-150.0,0.00743111,120]
[358258423,1744876385173,-150.0,0.00743111,120]
[358258424,1744876385182,-150.0,0.0074383,120]
[358258425,1744876385193,-306.03775367,0.00743879,120]
[358258426,1744876385203,-400.0,0.00744,120]
[358258427,1744876385213,-150.0,0.00744167,120]
[358258428,1744876385223,-150.0,0.00744638,120]
[358258429,1744876385233,-306.03775367,0.00744646,120]
[358258430,1744876385243,-150.0,0.00745222,120]
[358258431,1744876385252,-150.0,0.00745222,120]
[358258432,1744876385261,-306.03775367,0.00745414,120]
[358258433,1744876385271,-150.0,0.00745447,120]
[358258434,1744876385280,-306.03775367,0.00746182,120]